fUST/lending_fUST_20240720
["ID","MTS","AMOUNT","RATE_DAILY","PERIOD"]
[332683701,1721442346182,-1527.87110275,0.00015041,2]
[332683702,1721442418136,-204.85960485,0.00015041,2]
[332683703,1721442426107,-750.0,0.00015041,2]
[332683705,1721442432137,-166.666668,0.00015041,2]
[332683706,1721442437097,-3714.85348558,0.00015041,2]
[332683707,1721442437131,-262.66943961,0.00015041,2]
[332683708,1721442450117,-833.09084471,0.00015041,2]
[332683709,1721442450149,-41.967453,0.00015041,2]
[332683710,1721442450174,-230.069233,0.00015203,2]
[332683711,1721442450196,-236.8694657,0.00015222,2]
[332683712,1721442450222,-1796.1491181,0.00015525,2]
[332683713,1721442450246,-5303.4494987,0.00015912,2]
[332683714,1721442450268,-263.82843209,0.00015927,2]
[332683715,1721442450290,-2123.34975363,0.00015954,2]
[332683716,1721442450313,-230.069233,0.00015995,2]
[332683717,1721442450337,-386.7444477,0.000161,2]
[332683718,1721442450603,-620.22823912,0.00016241,2]
[332683719,1721442450626,-1445.09784966,0.00016338,2]
[332683720,1721442450648,-128.21486318,0.000164,2]
[332683721,1721442454103,-404.72922386,0.00015954,2]
[332683722,1721442465671,-166.666666,0.00014795,2]
[332683791,1721442640997,-2084.63785308,0.00015751,2]
[332683792,1721442641007,-286.54473719,0.00016159,2]
[332683793,1721442641018,-2039.03252886,0.000164,2]
[332683804,1721442646073,-634.69100385,0.000164,2]
[332683805,1721442646085,-2623.6101165,0.000164,2]
[332683818,1721442772715,2574.0,0.000225,30]
[332683820,1721443012339,166.666666,0.00014795,2]
[332683824,1721443545468,-1099.8963551,0.00015103,2]
[332683825,1721443545491,-250.0,0.00015213,2]
[332683826,1721443545512,-258.71532905,0.00015708,2]
[332683827,1721443576446,166.666666,0.00014795,2]
[332683828,1721443626083,-157.07925344,0.00015708,2]
[332683829,1721443626104,-155.00719132,0.00015744,2]
[332683830,1721443626125,-154.92227864,0.00015744,2]
[332683831,1721443626146,-146.81042243,0.00015746,2]
[332683832,1721443642094,-830.29542355,0.0001571,2]
[332683833,1721443646090,-259.61330393,0.0001571,2]
[332683834,1721443647126,-994.7291256,0.0001571,2]
[332683835,1721443647150,-847.3023121,0.00015746,2]
[332683836,1721443647176,-2157.9685623,0.00015963,2]
[332683837,1721443651121,-750.0,0.00015963,2]
[332683838,1721443654095,-1534.42246837,0.00015963,2]
[332683839,1721443686097,217.45,0.00010959,2]
[332683892,1721443832480,-887.61771083,0.00015003,2]
[332683894,1721443832490,-116.63228932,0.00015485,2]
[332683896,1721443832501,-44.78277568,0.00015485,2]
[332683897,1721443832512,-161.415065,0.00015565,2]
[332683898,1721443832523,-161.415065,0.00015646,2]
[332683899,1721443832532,-161.415065,0.00015727,2]
[332683900,1721443832542,-161.415065,0.00015807,2]
[332683901,1721443832553,-206.5817573,0.00015878,2]
[332683902,1721443832563,-153.0,0.00015878,2]
[332683903,1721443832572,-153.0,0.00015878,2]
[332683904,1721443832582,-153.0,0.00015878,2]
[332683905,1721443832592,-206.5817573,0.00015878,2]
[332683906,1721443832603,-153.0,0.00015878,2]
[332683907,1721443832614,-161.415065,0.00015888,2]
[332683908,1721443832627,-1177.74254923,0.00015968,2]
[332683912,1721443838246,-1967.05224492,0.00015968,2]
[332683914,1721443838256,-161.415065,0.00015969,2]
[332683916,1721443838265,-161.415065,0.00016049,2]
[332683918,1721443838276,-154.71605134,0.00016095,2]
[332683920,1721443838286,-4522.82450956,0.0001611,2]
[332683921,1721443838295,-161.415065,0.0001613,2]
[332683922,1721443838304,-161.415065,0.00016211,2]
[332683923,1721443838313,-161.415065,0.00016291,2]
[332683924,1721443838323,-1300.58806473,0.00016338,2]
[332683925,1721443838332,-209.03464589,0.00016347,2]
[332683926,1721443838342,-5722.88731478,0.000164,2]
[332683927,1721443838352,-155.9915256,0.000164,2]
[332683928,1721443838361,-150.0,0.00016426,2]
[332683929,1721443838370,-504.0,0.00016426,2]
[332683930,1721443838380,-1408.0,0.00016426,2]
[332683931,1721443838389,-1240.79448111,0.00016428,2]
[332683972,1721443843458,-3478.85753791,0.00016095,2]
[332683974,1721443844075,-1043.96697165,0.00016095,2]
[332683975,1721443844086,-10118.53736759,0.00016428,2]
[332683977,1721443844095,-5242.76854554,0.00016428,2]
[332683979,1721443844106,-5000.0,0.00016437,2]
[332683981,1721443844116,-5000.0,0.00016437,2]
[332683983,1721443844127,-5000.0,0.00016437,2]
[332683984,1721443844137,-4165.63818852,0.00016437,2]
[332683985,1721443844149,-20013.28483035,0.00016437,2]
[332683986,1721443844161,-18070.38839633,0.00016437,2]
[332683987,1721443844237,-363.0741662,0.00016437,2]
[332684010,1721443846490,-153.0,0.00015878,2]
[332684011,1721443846501,-206.5817573,0.000164,2]
[332684012,1721443846511,-9049.54172898,0.00016437,2]
[332684013,1721444272267,166.666666,0.00014795,2]
[332684016,1721444768615,154.71377951,9.999e-05,2]
[332684017,1721444783620,154.71377951,9.999e-05,2]
[332684018,1721444793751,403.79584072,0.00015,2]
[332684019,1721444828193,-200.3676359,0.00015114,2]
[332684020,1721444828216,-718.53627567,0.0001513,2]
[332684021,1721444830092,-723.35891699,0.0001513,2]
[332684022,1721444838377,-3563.34423504,0.0001513,2]
[332684023,1721444838400,-210.514573,0.00015316,2]
[332684024,1721444838424,-289.8481289,0.00015316,2]
[332684025,1721444838446,-1017.64669862,0.00015708,2]
[332684026,1721444842111,-522.06623159,0.00015708,2]
[332684028,1721444844083,-751.63381084,0.00015708,2]
[332684029,1721444846094,-2803.71288082,0.00015708,2]
[332684030,1721444854135,-385.97013371,0.00015708,2]
[332684031,1721444854156,-114.02986629,0.00015708,2]
[332684032,1721444870765,166.666666,0.00014795,2]
[332684033,1721444956762,204.69910386,9.999e-05,2]
[332684034,1721445014202,202.78437057,0.0001212,2]
[332684092,1721445038966,-155.32199037,0.0001513,2]
[332684093,1721445038976,-214.4844372,0.00015272,2]
[332684094,1721445038986,-224.196724,0.00015338,2]
[332684095,1721445038996,-1970.60798679,0.00015708,2]
[332684096,1721445039005,-600.0,0.0001578,2]
[332684097,1721445039014,-194.90930656,0.00015851,2]
[332684098,1721445039027,-151.24772965,0.00015851,2]
[332684099,1721445039036,-1585.89842158,0.00015851,2]
[332684100,1721445039047,-842.39959732,0.00015851,2]
[332684101,1721445039057,-600.0,0.00015945,2]
[332684102,1721445039067,-591.2308855,0.00016,2]
[332684103,1721445039077,-199.8387946,0.00016,2]
[332684104,1721445039091,-153.0,0.00016,2]
[332684105,1721445039102,-153.0,0.00016,2]
[332684106,1721445039113,-206.5817573,0.00016,2]
[332684107,1721445039122,-153.0,0.000161,2]
[332684108,1721445039133,-206.5817573,0.000161,2]
[332684109,1721445039145,-752.14506731,0.00016109,2]
[332684110,1721445039154,-403.20520553,0.00016159,2]
[332684111,1721445039166,-642.11319362,0.000162,2]
[332684112,1721445039176,-206.5817573,0.000162,2]
[332684113,1721445039187,-153.0,0.000162,2]
[332684114,1721445039196,-153.0,0.000162,2]
[332684115,1721445039205,-206.5817573,0.000162,2]
[332684116,1721445039214,-153.0,0.000162,2]
[332684117,1721445039224,-153.0,0.000162,2]
[332684118,1721445039234,-153.0,0.000162,2]
[332684119,1721445039244,-153.0,0.000162,2]
[332684120,1721445039253,-160.2340023,0.000162,2]
[332684121,1721445039262,-206.5817573,0.000162,2]
[332684122,1721445039274,-153.0,0.00016252,2]
[332684123,1721445039283,-153.0,0.000163,2]
[332684124,1721445039293,-4728.0195756,0.00016313,2]
[332684125,1721445039302,-1080.82340219,0.00016338,2]
[332684126,1721445039311,-1408.0,0.00016359,2]
[332684127,1721445039321,-546.1217235,0.00016428,2]
[332684128,1721445039330,-218.4486894,0.00016428,2]
[332684129,1721445039339,-150.0,0.0001643,2]
[332684130,1721445039348,-504.0,0.0001643,2]
[332684131,1721445039358,-27088.89652033,0.00016437,2]
[332684132,1721445039367,-500.0,0.00016438,2]
[332684133,1721445039376,-151.0,0.00016438,2]
[332684134,1721445039385,-151.0,0.00016438,2]
[332684135,1721445039394,-153.82969,0.00016438,2]
[332684136,1721445039404,-500.0,0.00016438,2]
[332684137,1721445039415,-631.77,0.00016438,2]
[332684138,1721445039424,-500.0,0.00016438,2]
[332684139,1721445039434,-1104.44,0.00016438,2]
[332684140,1721445039445,-575.17339828,0.00016438,2]
[332684141,1721445039455,-500.0,0.00016438,2]
[332684142,1721445039467,-500.0,0.00016438,2]
[332684143,1721445039477,-500.0,0.00016438,2]
[332684144,1721445039487,-500.0,0.00016438,2]
[332684145,1721445039497,-619.64,0.00016438,2]
[332684146,1721445039508,-853.51,0.00016438,2]
[332684147,1721445039518,-500.0,0.00016438,2]
[332684148,1721445039529,-500.0,0.00016438,2]
[332684149,1721445039538,-500.0,0.00016438,2]
[332684150,1721445039549,-500.0,0.00016438,2]
[332684151,1721445039560,-1896.29,0.00016438,2]
[332684152,1721445039570,-502.70524814,0.00016438,2]
[332684153,1721445039579,-500.0,0.00016438,2]
[332684154,1721445039589,-503.15732607,0.00016438,2]
[332684155,1721445039598,-235.32360746,0.00016438,2]
[332684156,1721445039607,-971.88,0.00016438,2]
[332684157,1721445039617,-500.0,0.00016438,2]
[332684158,1721445039627,-500.0,0.00016438,2]
[332684159,1721445039637,-500.0,0.00016438,2]
[332684160,1721445039647,-500.0,0.00016438,2]
[332684161,1721445039656,-500.0,0.00016438,2]
[332684162,1721445039665,-165.40279002,0.00016438,2]
[332684163,1721445039675,-500.0,0.00016438,2]
[332684164,1721445039686,-523.49,0.00016438,2]
[332684165,1721445039696,-500.0,0.00016438,2]
[332684166,1721445039707,-502.23902653,0.00016438,2]
[332684167,1721445039716,-582.12759626,0.00016438,2]
[332684168,1721445039728,-501.31848195,0.00016438,2]
[332684169,1721445039739,-500.0,0.00016438,2]
[332684170,1721445039750,-500.0,0.00016438,2]
[332684171,1721445039762,-863.03,0.00016438,2]
[332684172,1721445039771,-500.0,0.00016438,2]
[332684173,1721445039780,-500.0,0.00016438,2]
[332684174,1721445039789,-500.0,0.00016438,2]
[332684175,1721445039799,-500.0,0.00016438,2]
[332684176,1721445039809,-500.0,0.00016438,2]
[332684177,1721445039818,-500.0,0.00016438,2]
[332684178,1721445039828,-812.81,0.00016438,2]
[332684179,1721445039838,-500.0,0.00016438,2]
[332684180,1721445039847,-500.0,0.00016438,2]
[332684181,1721445039857,-500.0,0.00016438,2]
[332684182,1721445039866,-500.0,0.00016438,2]
[332684183,1721445039875,-613.01,0.00016438,2]
[332684184,1721445039885,-507.78318751,0.00016438,2]
[332684185,1721445039895,-500.0,0.00016438,2]
[332684186,1721445039905,-500.0,0.00016438,2]
[332684187,1721445039915,-500.0,0.00016438,2]
[332684188,1721445039924,-725.15,0.00016438,2]
[332684189,1721445039934,-503.73404404,0.00016438,2]
[332684190,1721445039947,-500.0,0.00016438,2]
[332684191,1721445039958,-478.89347485,0.00016438,2]
[332684192,1721445039967,-502.71174989,0.00016438,2]
[332684193,1721445039977,-629.46,0.00016438,2]
[332684194,1721445039988,-500.0,0.00016438,2]
[332684195,1721445039999,-500.0,0.00016438,2]
[332684196,1721445040010,-500.0,0.00016438,2]
[332684197,1721445040021,-501.32670427,0.00016438,2]
[332684198,1721445040031,-500.0,0.00016438,2]
[332684199,1721445040042,-500.0,0.00016438,2]
[332684200,1721445040053,-500.0,0.00016438,2]
[332684201,1721445040066,-500.0,0.00016438,2]
[332684202,1721445040079,-500.0,0.00016438,2]
[332684203,1721445040092,-500.0,0.00016438,2]
[332684204,1721445040103,-500.0,0.00016438,2]
[332684205,1721445040112,-500.0,0.00016438,2]
[332684206,1721445040122,-500.0,0.00016438,2]
[332684207,1721445040131,-500.0,0.00016438,2]
[332684208,1721445040141,-507.33878365,0.00016438,2]
[332684209,1721445040150,-357.45663346,0.00016438,2]
[332684210,1721445040159,-539.36,0.00016438,2]
[332684211,1721445040170,-502.8673748,0.00016438,2]
[332684212,1721445040180,-4073.63,0.00016438,2]
[332684213,1721445040190,-500.0,0.00016438,2]
[332684214,1721445040200,-527.58399324,0.00016438,2]
[332684215,1721445040210,-500.0,0.00016438,2]
[332684216,1721445040223,-500.0,0.00016438,2]
[332684217,1721445040233,-500.0,0.00016438,2]
[332684218,1721445040246,-1063.5,0.00016438,2]
[332684219,1721445040256,-423.77668106,0.00016438,2]
[332684220,1721445040267,-1438.85,0.00016438,2]
[332684221,1721445040277,-500.0,0.00016438,2]
[332684222,1721445040287,-500.0,0.00016438,2]
[332684223,1721445040297,-500.0,0.00016438,2]
[332684224,1721445040306,-500.0,0.00016438,2]
[332684225,1721445040316,-460.45151269,0.00016438,2]
[332684226,1721445040326,-500.0,0.00016438,2]
[332684227,1721445040337,-500.0,0.00016438,2]
[332684228,1721445040348,-404.42876529,0.00016438,2]
[332684229,1721445040359,-1802.75,0.00016438,2]
[332684230,1721445040370,-882.08,0.00016438,2]
[332684231,1721445040379,-500.0,0.00016438,2]
[332684232,1721445040389,-500.0,0.00016438,2]
[332684233,1721445040398,-502.29318717,0.00016438,2]
[332684234,1721445040408,-500.0,0.00016438,2]
[332684235,1721445040419,-500.0,0.00016438,2]
[332684236,1721445040428,-500.0,0.00016438,2]
[332684238,1721445040439,-506.2655569,0.00016438,2]
[332684240,1721445040448,-1167.02,0.00016438,2]
[332684241,1721445040669,-786.53,0.00016438,2]
[332684242,1721445040681,-500.0,0.00016438,2]
[332684243,1721445040693,-188.95960906,0.00016438,2]
[332684245,1721445040704,-838.19,0.00016438,2]
[332684246,1721445040715,-500.0,0.00016438,2]
[332684247,1721445040724,-519.19371319,0.00016438,2]
[332684248,1721445040734,-500.0,0.00016438,2]
[332684249,1721445040744,-500.0,0.00016438,2]
[332684250,1721445040753,-500.0,0.00016438,2]
[332684251,1721445040763,-500.0,0.00016438,2]
[332684252,1721445040775,-500.0,0.00016438,2]
[332684253,1721445040785,-500.0,0.00016438,2]
[332684254,1721445040794,-500.0,0.00016438,2]
[332684255,1721445040806,-669.38,0.00016438,2]
[332684256,1721445040816,-776.69,0.00016438,2]
[332684257,1721445040826,-500.0,0.00016438,2]
[332684258,1721445040837,-922.02,0.00016438,2]
[332684259,1721445040846,-510.5776989,0.00016438,2]
[332684260,1721445040856,-677.54,0.00016438,2]
[332684261,1721445040866,-500.97709331,0.00016438,2]
[332684262,1721445040876,-641.45,0.00016438,2]
[332684263,1721445040886,-500.0,0.00016438,2]
[332684264,1721445040896,-500.0,0.00016438,2]
[332684265,1721445040905,-500.0,0.00016438,2]
[332684266,1721445040918,-2240.18,0.00016438,2]
[332684267,1721445040927,-500.0,0.00016438,2]
[332684268,1721445040936,-1865.99,0.00016438,2]
[332684269,1721445040945,-500.0,0.00016438,2]
[332684270,1721445040955,-500.0,0.00016438,2]
[332684271,1721445040964,-500.0,0.00016438,2]
[332684272,1721445040973,-500.0,0.00016438,2]
[332684273,1721445040981,-892.76,0.00016438,2]
[332684274,1721445040991,-500.0,0.00016438,2]
[332684275,1721445041000,-500.0,0.00016438,2]
[332684276,1721445041009,-500.0,0.00016438,2]
[332684277,1721445041019,-566.22,0.00016438,2]
[332684278,1721445041028,-500.0,0.00016438,2]
[332684279,1721445041037,-500.0,0.00016438,2]
[332684280,1721445041046,-500.0,0.00016438,2]
[332684281,1721445041055,-500.0,0.00016438,2]
[332684282,1721445041064,-500.0,0.00016438,2]
[332684283,1721445041073,-500.0,0.00016438,2]
[332684284,1721445041083,-500.0,0.00016438,2]
[332684285,1721445041096,-500.0,0.00016438,2]
[332684286,1721445041104,-500.0,0.00016438,2]
[332684287,1721445041113,-500.0,0.00016438,2]
[332684288,1721445041123,-500.0,0.00016438,2]
[332684289,1721445041133,-540.67,0.00016438,2]
[332684290,1721445041142,-500.0,0.00016438,2]
[332684291,1721445041151,-500.0,0.00016438,2]
[332684292,1721445041161,-500.0,0.00016438,2]
[332684293,1721445041171,-500.0,0.00016438,2]
[332684294,1721445041180,-500.0,0.00016438,2]
[332684295,1721445041189,-500.0,0.00016438,2]
[332684296,1721445041198,-211.42433015,0.00016438,2]
[332684297,1721445041207,-509.74,0.00016438,2]
[332684298,1721445041216,-506.96479371,0.00016438,2]
[332684299,1721445041225,-2823.36,0.00016438,2]
[332684300,1721445041234,-500.0,0.00016438,2]
[332684301,1721445041244,-501.12390469,0.00016438,2]
[332684302,1721445041254,-500.0,0.00016438,2]
[332684303,1721445041263,-500.0,0.00016438,2]
[332684304,1721445041273,-500.0,0.00016438,2]
[332684305,1721445041282,-1282.61,0.00016438,2]
[332684306,1721445041292,-775.53,0.00016438,2]
[332684307,1721445041301,-500.0,0.00016438,2]
[332684308,1721445041310,-500.0,0.00016438,2]
[332684309,1721445041319,-500.0,0.00016438,2]
[332684310,1721445041328,-1812.78,0.00016438,2]
[332684311,1721445041338,-500.0,0.00016438,2]
[332684312,1721445041347,-500.0,0.00016438,2]
[332684313,1721445041356,-612.02126791,0.00016438,2]
[332684314,1721445041365,-500.0,0.00016438,2]
[332684315,1721445041374,-500.0,0.00016438,2]
[332684316,1721445041382,-505.77134862,0.00016438,2]
[332684317,1721445041391,-923.82,0.00016438,2]
[332684318,1721445041401,-999.78,0.00016438,2]
[332684319,1721445041410,-500.0,0.00016438,2]
[332684320,1721445041419,-500.0,0.00016438,2]
[332684321,1721445041427,-503.14588813,0.00016438,2]
[332684322,1721445041437,-771.82,0.00016438,2]
[332684323,1721445041446,-722.29,0.00016438,2]
[332684324,1721445041455,-500.0,0.00016438,2]
[332684325,1721445041465,-207.7187867,0.00016438,2]
[332684326,1721445041474,-500.0,0.00016438,2]
[332684327,1721445041484,-500.0,0.00016438,2]
[332684328,1721445041493,-500.0,0.00016438,2]
[332684329,1721445041503,-500.0,0.00016438,2]
[332684330,1721445041513,-619.08566216,0.00016438,2]
[332684331,1721445041523,-589.71,0.00016438,2]
[332684332,1721445041533,-500.0,0.00016438,2]
[332684333,1721445041542,-1850.9,0.00016438,2]
[332684334,1721445041551,-566.94,0.00016438,2]
[332684335,1721445041560,-706.62,0.00016438,2]
[332684336,1721445041570,-500.0,0.00016438,2]
[332684337,1721445041579,-1505.67,0.00016438,2]
[332684338,1721445041588,-918.63,0.00016438,2]
[332684339,1721445041598,-500.0,0.00016438,2]
[332684340,1721445041607,-500.0,0.00016438,2]
[332684341,1721445041617,-415.03209969,0.00016438,2]
[332684342,1721445041626,-500.0,0.00016438,2]
[332684343,1721445041636,-500.0,0.00016438,2]
[332684344,1721445041646,-1260.2,0.00016438,2]
[332684345,1721445041655,-500.0,0.00016438,2]
[332684346,1721445041664,-500.0,0.00016438,2]
[332684347,1721445041674,-512.54286972,0.00016438,2]
[332684348,1721445041683,-500.0,0.00016438,2]
[332684349,1721445041693,-1092.94,0.00016438,2]
[332684350,1721445041703,-2408.86,0.00016438,2]
[332684351,1721445041712,-500.0,0.00016438,2]
[332684352,1721445041723,-500.0,0.00016438,2]
[332684353,1721445041732,-504.48,0.00016438,2]
[332684354,1721445041742,-500.0,0.00016438,2]
[332684355,1721445041752,-1356.69,0.00016438,2]
[332684356,1721445041761,-607.13,0.00016438,2]
[332684357,1721445041773,-908.11,0.00016438,2]
[332684358,1721445041783,-470.27925151,0.00016438,2]
[332684359,1721445041792,-822.77,0.00016438,2]
[332684360,1721445041802,-500.0,0.00016438,2]
[332684361,1721445041812,-1763.57,0.00016438,2]
[332684362,1721445041821,-532.28,0.00016438,2]
[332684363,1721445041831,-1181.43,0.00016438,2]
[332684364,1721445041841,-645.96,0.00016438,2]
[332684365,1721445041851,-500.0,0.00016438,2]
[332684366,1721445041860,-506.34,0.00016438,2]
[332684367,1721445041869,-2171.91,0.00016438,2]
[332684368,1721445041879,-500.0,0.00016438,2]
[332684369,1721445041888,-500.0,0.00016438,2]
[332684370,1721445041897,-1019.02,0.00016438,2]
[332684371,1721445041909,-500.0,0.00016438,2]
[332684372,1721445041918,-2175.57,0.00016438,2]
[332684373,1721445041928,-745.42,0.00016438,2]
[332684374,1721445041938,-500.0,0.00016438,2]
[332684375,1721445041949,-531.85,0.00016438,2]
[332684376,1721445041959,-500.0,0.00016438,2]
[332684377,1721445041970,-536.11420788,0.00016438,2]
[332684378,1721445041981,-997.61,0.00016438,2]
[332684379,1721445041993,-13365.13,0.00016438,2]
[332684380,1721445042002,-500.0,0.00016438,2]
[332684381,1721445042012,-500.0,0.00016438,2]
[332684382,1721445042023,-514.51672827,0.00016438,2]
[332684383,1721445042034,-500.0,0.00016438,2]
[332684384,1721445042043,-516.74,0.00016438,2]
[332684385,1721445042053,-500.0,0.00016438,2]
[332684386,1721445042063,-727.68,0.00016438,2]
[332684387,1721445042076,-211.08842914,0.00016438,2]
[332684388,1721445042087,-711.69,0.00016438,2]
[332684389,1721445042099,-1039.74,0.00016438,2]
[332684390,1721445042109,-4038.34,0.00016438,2]
[332684391,1721445042119,-446.23956577,0.00016438,2]
[332684392,1721445042130,-520.1,0.00016438,2]
[332684393,1721445042140,-500.0,0.00016438,2]
[332684394,1721445042149,-500.0,0.00016438,2]
[332684395,1721445042159,-691.84,0.00016438,2]
[332684396,1721445042170,-1545.29,0.00016438,2]
[332684397,1721445042179,-500.0,0.00016438,2]
[332684398,1721445042189,-500.0,0.00016438,2]
[332684399,1721445042199,-500.0,0.00016438,2]
[332684400,1721445042209,-1981.51,0.00016438,2]
[332684401,1721445042219,-629.66,0.00016438,2]
[332684402,1721445042228,-2160.45,0.00016438,2]
[332684403,1721445042238,-500.0,0.00016438,2]
[332684404,1721445042247,-1120.71,0.00016438,2]
[332684405,1721445042257,-500.0,0.00016438,2]
[332684406,1721445042266,-500.0,0.00016438,2]
[332684407,1721445042277,-1433.17,0.00016438,2]
[332684408,1721445042287,-500.0,0.00016438,2]
[332684409,1721445042297,-756.67,0.00016438,2]
[332684410,1721445042306,-500.0,0.00016438,2]
[332684411,1721445042315,-500.0,0.00016438,2]
[332684412,1721445042325,-500.0,0.00016438,2]
[332684413,1721445042335,-500.0,0.00016438,2]
[332684414,1721445042344,-501.52214706,0.00016438,2]
[332684415,1721445042354,-788.67,0.00016438,2]
[332684416,1721445042363,-1276.77,0.00016438,2]
[332684417,1721445042372,-269.349629,0.00016438,2]
[332684418,1721445042381,-269.349629,0.00016438,2]
[332684419,1721445042390,-269.349629,0.00016438,2]
[332684420,1721445042400,-269.349629,0.00016438,2]
[332684421,1721445042410,-269.349629,0.00016438,2]
[332684422,1721445042419,-269.349629,0.00016438,2]
[332684423,1721445042428,-269.349629,0.00016438,2]
[332684424,1721445042437,-269.349629,0.00016438,2]
[332684425,1721445042447,-269.349629,0.00016438,2]
[332684426,1721445042457,-269.349629,0.00016438,2]
[332684427,1721445042466,-269.349629,0.00016438,2]
[332684428,1721445042476,-764.87,0.00016438,2]
[332684429,1721445042485,-269.349629,0.00016438,2]
[332684430,1721445042495,-269.349629,0.00016438,2]
[332684431,1721445042504,-269.349629,0.00016438,2]
[332684432,1721445042514,-269.349629,0.00016438,2]
[332684433,1721445042525,-269.349629,0.00016438,2]
[332684434,1721445042534,-269.349629,0.00016438,2]
[332684435,1721445042543,-500.0,0.00016438,2]
[332684436,1721445042553,-269.349629,0.00016438,2]
[332684437,1721445042563,-269.349629,0.00016438,2]
[332684438,1721445042572,-269.349637,0.00016438,2]
[332684439,1721445042583,-2348.72,0.00016438,2]
[332684440,1721445042592,-500.0,0.00016438,2]
[332684441,1721445042601,-1019.72,0.00016438,2]
[332684442,1721445042611,-500.0,0.00016438,2]
[332684443,1721445042620,-641.35366962,0.00016438,2]
[332684444,1721445042630,-2593.56,0.00016438,2]
[332684445,1721445042639,-500.0,0.00016438,2]
[332684446,1721445042648,-825.41,0.00016438,2]
[332684447,1721445042658,-593.29,0.00016438,2]
[332684448,1721445042668,-500.0,0.00016438,2]
[332684449,1721445042677,-602.73,0.00016438,2]
[332684450,1721445042686,-2705.05,0.00016438,2]
[332684451,1721445042696,-504.75,0.00016438,2]
[332684452,1721445042706,-3025.18,0.00016438,2]
[332684453,1721445042715,-183.57010936,0.00016438,2]
[332684454,1721445042726,-151.0,0.00016438,2]
[332684455,1721445042735,-151.0,0.00016438,2]
[332684456,1721445042745,-151.0,0.00016438,2]
[332684457,1721445042756,-4977.24,0.00016438,2]
[332684458,1721445042768,-151.0,0.00016438,2]
[332684459,1721445042778,-151.0,0.00016438,2]
[332684460,1721445042789,-151.0,0.00016438,2]
[332684461,1721445042799,-5428.37,0.00016438,2]
[332684462,1721445042810,-151.0,0.00016438,2]
[332684463,1721445042819,-500.0,0.00016438,2]
[332684464,1721445042829,-151.0,0.00016438,2]
[332684465,1721445042839,-500.0,0.00016438,2]
[332684466,1721445042848,-151.0,0.00016438,2]
[332684467,1721445042858,-151.0,0.00016438,2]
[332684468,1721445042867,-151.0,0.00016438,2]
[332684469,1721445042877,-151.0,0.00016438,2]
[332684470,1721445042888,-500.0,0.00016438,2]
[332684471,1721445042898,-151.0,0.00016438,2]
[332684472,1721445042908,-172.113312,0.00016438,2]
[332684473,1721445042918,-677.99,0.00016438,2]
[332684474,1721445042929,-500.0,0.00016438,2]
[332684475,1721445042941,-500.0,0.00016438,2]
[332684476,1721445042951,-554.15,0.00016438,2]
[332684477,1721445042964,-500.0,0.00016438,2]
[332684478,1721445042975,-622.35,0.00016438,2]
[332684479,1721445042986,-10136.95,0.00016438,2]
[332684480,1721445042997,-999.45,0.00016438,2]
[332684481,1721445043008,-500.0,0.00016438,2]
[332684482,1721445043018,-3597.41,0.00016438,2]
[332684483,1721445043029,-513.84908015,0.00016438,2]
[332684484,1721445043039,-500.0,0.00016438,2]
[332684485,1721445043049,-500.0,0.00016438,2]
[332684486,1721445043059,-1277.11,0.00016438,2]